fUSD/lending_fUSD_20240624
["ID","MTS","AMOUNT","RATE_DAILY","PERIOD"]
[330286178,1719232244975,-151.0,0.00019178,2]
[330286179,1719232244984,-500.0,0.00019178,2]
[330286180,1719232244994,-151.0,0.00019178,2]
[330286181,1719232245004,-500.0,0.00019178,2]
[330286182,1719232245013,-643.73234253,0.00019178,2]
[330286183,1719232245025,-151.0,0.00019178,2]
[330286184,1719232245035,-151.0,0.00019178,2]
[330286185,1719232245044,-171.467116,0.00019178,2]
[330286186,1719232245052,-500.0,0.00019178,2]
[330286187,1719232245062,-500.0,0.00019178,2]
[330286188,1719232245071,-500.0,0.00019178,2]
[330286189,1719232245080,-398.89650527,0.00019178,2]
[330286190,1719232245089,-974.45,0.00019178,2]
[330286191,1719232245098,-964.64,0.00019178,2]
[330286192,1719232245107,-500.0,0.00019178,2]
[330286193,1719232245116,-500.0,0.00019178,2]
[330286194,1719232245125,-930.58,0.00019178,2]
[330286195,1719232245135,-500.0,0.00019178,2]
[330286196,1719232245144,-151.0,0.00019178,2]
[330286197,1719232245153,-658.71,0.00019178,2]
[330286198,1719232245163,-500.0,0.00019178,2]
[330286199,1719232245172,-466.7421822,0.00019178,2]
[330286200,1719232245181,-500.0,0.00019178,2]
[330286201,1719232245190,-152.086478,0.00019178,2]
[330286202,1719232245199,-152.086478,0.00019178,2]
[330286203,1719232245208,-152.086478,0.00019178,2]
[330286204,1719232245218,-500.0,0.00019178,2]
[330286205,1719232245227,-500.0,0.00019178,2]
[330286206,1719232245236,-152.086478,0.00019178,2]
[330286207,1719232245245,-152.086478,0.00019178,2]
[330286208,1719232245255,-152.086478,0.00019178,2]
[330286209,1719232245264,-622.07,0.00019178,2]
[330286210,1719232245275,-671.54,0.00019178,2]
[330286211,1719232245285,-500.0,0.00019178,2]
[330286212,1719232245295,-264.465687,0.00019178,2]
[330286213,1719232245304,-264.465687,0.00019178,2]
[330286214,1719232245314,-264.465687,0.00019178,2]
[330286215,1719232245323,-500.0,0.00019178,2]
[330286216,1719232245333,-500.0,0.00019178,2]
[330286217,1719232245343,-151.0,0.00019178,2]
[330286218,1719232245352,-500.0,0.00019178,2]
[330286219,1719232245361,-264.465687,0.00019178,2]
[330286220,1719232245370,-151.0,0.00019178,2]
[330286221,1719232245379,-264.465687,0.00019178,2]
[330286222,1719232245388,-152.103664,0.00019178,2]
[330286223,1719232245397,-264.465687,0.00019178,2]
[330286224,1719232245407,-500.0,0.00019178,2]
[330286225,1719232245416,-581.04,0.00019178,2]
[330286226,1719232245425,-175.915312,0.00019178,2]
[330286227,1719232245434,-152.042745,0.00019178,2]
[330286228,1719232245443,-156.261198,0.00019178,2]
[330286229,1719232245452,-500.0,0.00019178,2]
[330286230,1719232245461,-896.72,0.00019178,2]
[330286231,1719232245471,-151.0,0.00019178,2]
[330286232,1719232245480,-151.0,0.00019178,2]
[330286233,1719232245489,-154.543153,0.00019178,2]
[330286234,1719232245499,-151.0,0.00019178,2]
[330286235,1719232245508,-500.0,0.00019178,2]
[330286236,1719232245518,-500.0,0.00019178,2]
[330286237,1719232245527,-518.5,0.00019178,2]
[330286238,1719232245536,-500.0,0.00019178,2]
[330286239,1719232245545,-616.32808001,0.00019178,2]
[330286240,1719232245555,-500.0,0.00019178,2]
[330286241,1719232245565,-152.744927,0.00019178,2]
[330286242,1719232245574,-500.0,0.00019178,2]
[330286243,1719232245584,-500.0,0.00019178,2]
[330286244,1719232245593,-151.0,0.00019178,2]
[330286245,1719232245603,-151.0,0.00019178,2]
[330286246,1719232245612,-500.0,0.00019178,2]
[330286247,1719232245622,-546.77,0.00019178,2]
[330286248,1719232245631,-500.0,0.00019178,2]
[330286249,1719232245640,-500.0,0.00019178,2]
[330286250,1719232245649,-500.0,0.00019178,2]
[330286251,1719232245659,-151.0,0.00019178,2]
[330286252,1719232245668,-152.473571,0.00019178,2]
[330286253,1719232245677,-500.0,0.00019178,2]
[330286254,1719232245686,-500.0,0.00019178,2]
[330286255,1719232245695,-500.0,0.00019178,2]
[330286256,1719232245713,-500.0,0.00019178,2]
[330286257,1719232245722,-500.0,0.00019178,2]
[330286258,1719232245732,-500.0,0.00019178,2]
[330286259,1719232245741,-707.33,0.00019178,2]
[330286260,1719232245753,-500.0,0.00019178,2]
[330286261,1719232245762,-500.0,0.00019178,2]
[330286262,1719232245773,-500.0,0.00019178,2]
[330286263,1719232245783,-500.0,0.00019178,2]
[330286264,1719232245792,-500.0,0.00019178,2]
[330286265,1719232245801,-500.0,0.00019178,2]
[330286266,1719232245811,-151.0,0.00019178,2]
[330286267,1719232245820,-151.0,0.00019178,2]
[330286268,1719232245829,-374.88148,0.00019178,2]
[330286269,1719232245838,-374.88148,0.00019178,2]
[330286270,1719232245847,-500.0,0.00019178,2]
[330286271,1719232245857,-500.0,0.00019178,2]
[330286272,1719232245866,-151.0,0.00019178,2]
[330286273,1719232245875,-151.0,0.00019178,2]
[330286274,1719232245884,-151.0,0.00019178,2]
[330286275,1719232245894,-500.0,0.00019178,2]
[330286276,1719232245903,-1153.4,0.00019178,2]
[330286277,1719232245913,-500.0,0.00019178,2]
[330286278,1719232245922,-151.0,0.00019178,2]
[330286279,1719232245931,-151.0,0.00019178,2]
[330286280,1719232245940,-151.0,0.00019178,2]
[330286281,1719232245949,-500.0,0.00019178,2]
[330286282,1719232245959,-586.34,0.00019178,2]
[330286283,1719232245968,-151.0,0.00019178,2]
[330286284,1719232245978,-667.2,0.00019178,2]
[330286285,1719232245987,-151.0,0.00019178,2]
[330286286,1719232245996,-1275.82,0.00019178,2]
[330286287,1719232246005,-151.0,0.00019178,2]
[330286288,1719232246072,-500.0,0.00019178,2]
[330286289,1719232246081,-719.18,0.00019178,2]
[330286290,1719232246091,-627.72,0.00019178,2]
[330286291,1719232246099,-1068.7,0.00019178,2]
[330286292,1719232246108,-1736.82,0.00019178,2]
[330286293,1719232246117,-2555.62,0.00019178,2]
[330286294,1719232246126,-500.0,0.00019178,2]
[330286295,1719232246135,-151.0,0.00019178,2]
[330286296,1719232246144,-151.0,0.00019178,2]
[330286297,1719232246153,-500.0,0.00019178,2]
[330286298,1719232246162,-500.0,0.00019178,2]
[330286299,1719232246171,-500.0,0.00019178,2]
[330286300,1719232246180,-500.0,0.00019178,2]
[330286301,1719232246189,-604.69,0.00019178,2]
[330286302,1719232246198,-500.0,0.00019178,2]
[330286303,1719232246208,-151.0,0.00019178,2]
[330286304,1719232246217,-151.0,0.00019178,2]
[330286305,1719232246226,-151.0,0.00019178,2]
[330286306,1719232246235,-151.0,0.00019178,2]
[330286307,1719232246244,-500.0,0.00019178,2]
[330286308,1719232246253,-2034.29,0.00019178,2]
[330286309,1719232246263,-569.62,0.00019178,2]
[330286310,1719232246273,-151.0,0.00019178,2]
[330286311,1719232246282,-272.686203,0.00019178,2]
[330286312,1719232246291,-509.40300689,0.00019178,2]
[330286313,1719232246299,-1136.28,0.00019178,2]
[330286314,1719232246308,-500.0,0.00019178,2]
[330286315,1719232246318,-500.0,0.00019178,2]
[330286316,1719232246327,-1621.31,0.00019178,2]
[330286317,1719232246336,-1882.47,0.00019178,2]
[330286318,1719232246346,-500.0,0.00019178,2]
[330286319,1719232246355,-500.0,0.00019178,2]
[330286320,1719232246364,-500.0,0.00019178,2]
[330286321,1719232246374,-500.0,0.00019178,2]
[330286322,1719232246383,-1044.92,0.00019178,2]
[330286323,1719232246393,-500.0,0.00019178,2]
[330286324,1719232246402,-151.0,0.00019178,2]
[330286325,1719232246411,-151.0,0.00019178,2]
[330286326,1719232246420,-500.0,0.00019178,2]
[330286327,1719232246429,-500.0,0.00019178,2]
[330286328,1719232246439,-643.89,0.00019178,2]
[330286329,1719232246448,-151.0,0.00019178,2]
[330286330,1719232246457,-151.0,0.00019178,2]
[330286331,1719232246466,-500.0,0.00019178,2]
[330286332,1719232246475,-1225.59,0.00019178,2]
[330286333,1719232246484,-500.0,0.00019178,2]
[330286334,1719232246494,-6822.43,0.00019178,2]
[330286335,1719232246503,-500.0,0.00019178,2]
[330286336,1719232246512,-810.87,0.00019178,2]
[330286337,1719232246524,-562.38,0.00019178,2]
[330286338,1719232246532,-500.0,0.00019178,2]
[330286339,1719232246541,-731.69,0.00019178,2]
[330286340,1719232246555,-500.0,0.00019178,2]
[330286341,1719232246565,-500.0,0.00019178,2]
[330286342,1719232246575,-500.0,0.00019178,2]
[330286343,1719232246585,-500.0,0.00019178,2]
[330286344,1719232246596,-669.74,0.00019178,2]
[330286345,1719232246606,-500.0,0.00019178,2]
[330286346,1719232246615,-725.86,0.00019178,2]
[330286347,1719232246625,-500.0,0.00019178,2]
[330286348,1719232246634,-500.0,0.00019178,2]
[330286349,1719232246644,-4914.99,0.00019178,2]
[330286350,1719232246653,-500.0,0.00019178,2]
[330286351,1719232246663,-500.0,0.00019178,2]
[330286352,1719232246672,-500.0,0.00019178,2]
[330286353,1719232246681,-500.0,0.00019178,3]
[330286354,1719232246690,-500.0,0.00019178,2]
[330286355,1719232246700,-500.0,0.00019178,2]
[330286356,1719232246710,-1140.53,0.00019178,2]
[330286357,1719232246723,-500.0,0.00019178,2]
[330286358,1719232246732,-151.0,0.00019178,2]
[330286359,1719232246741,-151.0,0.00019178,2]
[330286360,1719232246751,-151.0,0.00019178,2]
[330286361,1719232246762,-647.34,0.00019178,2]
[330286362,1719232246778,-500.0,0.00019178,2]
[330286363,1719232246787,-500.0,0.00019178,2]
[330286364,1719232246799,-151.0,0.00019178,2]
[330286365,1719232246810,-151.0,0.00019178,2]
[330286366,1719232246819,-151.0,0.00019178,2]
[330286367,1719232246828,-500.0,0.00019178,2]
[330286368,1719232246837,-580.44034192,0.00019178,2]
[330286369,1719232246846,-235.475307,0.00019178,2]
[330286370,1719232246855,-235.475307,0.00019178,2]
[330286371,1719232246864,-500.0,0.00019178,2]
[330286372,1719232246874,-235.475307,0.00019178,2]
[330286373,1719232246884,-945.88,0.00019178,2]
[330286374,1719232246893,-559.7,0.00019178,2]
[330286375,1719232246902,-500.0,0.00019178,2]
[330286376,1719232246911,-235.475307,0.00019178,2]
[330286377,1719232246921,-235.475307,0.00019178,2]
[330286378,1719232246930,-235.475307,0.00019178,2]
[330286379,1719232246939,-500.0,0.00019178,2]
[330286380,1719232246948,-151.0,0.00019178,2]
[330286381,1719232246961,-1599.77,0.00019178,2]
[330286382,1719232246971,-151.0,0.00019178,2]
[330286383,1719232246979,-151.0,0.00019178,2]
[330286384,1719232246989,-1291.27,0.00019178,2]
[330286385,1719232246999,-500.0,0.00019178,2]
[330286386,1719232247008,-500.0,0.00019178,2]
[330286387,1719232247019,-500.0,0.00019178,2]
[330286388,1719232247034,-500.0,0.00019178,2]
[330286389,1719232247043,-151.0,0.00019178,2]
[330286390,1719232247052,-500.0,0.00019178,2]
[330286391,1719232247061,-500.0,0.00019178,2]
[330286392,1719232247071,-964.77,0.00019178,2]
[330286393,1719232247080,-10066.7,0.00019178,2]
[330286394,1719232247089,-500.0,0.00019178,2]
[330286395,1719232247098,-500.0,0.00019178,2]
[330286396,1719232247107,-151.0,0.00019178,2]
[330286397,1719232247117,-151.0,0.00019178,2]
[330286398,1719232247127,-151.0,0.00019178,2]
[330286399,1719232247136,-500.0,0.00019178,2]
[330286400,1719232247146,-608.83,0.00019178,2]
[330286401,1719232247156,-151.0,0.00019178,2]
[330286402,1719232247165,-500.0,0.00019178,2]
[330286403,1719232247175,-662.71,0.00019178,2]
[330286404,1719232247184,-500.0,0.00019178,2]
[330286405,1719232247194,-1118.11,0.00019178,2]
[330286406,1719232247204,-721.79,0.00019178,2]
[330286407,1719232247214,-500.0,0.00019178,2]
[330286408,1719232247223,-588.46,0.00019178,2]
[330286409,1719232247233,-151.0,0.00019178,2]
[330286410,1719232247242,-553.3,0.00019178,2]
[330286411,1719232247252,-151.0,0.00019178,2]
[330286412,1719232247262,-500.0,0.00019178,2]
[330286413,1719232247273,-151.0,0.00019178,2]
[330286414,1719232247282,-151.0,0.00019178,2]
[330286415,1719232247291,-151.0,0.00019178,2]
[330286416,1719232247301,-151.0,0.00019178,2]
[330286417,1719232247310,-151.0,0.00019178,2]
[330286418,1719232247320,-500.0,0.00019178,2]
[330286419,1719232247329,-1227.19,0.00019178,2]
[330286420,1719232247338,-500.0,0.00019178,2]
[330286421,1719232247347,-500.0,0.00019178,2]
[330286422,1719232247356,-500.0,0.00019178,2]
[330286423,1719232247366,-534.75,0.00019178,2]
[330286424,1719232247375,-500.0,0.00019178,2]
[330286425,1719232247384,-500.0,0.00019178,2]
[330286426,1719232247394,-738.9,0.00019178,2]
[330286427,1719232247403,-500.0,0.00019178,2]
[330286428,1719232247412,-719.21,0.00019178,2]
[330286429,1719232247421,-733.43,0.00019178,2]
[330286430,1719232247431,-500.0,0.00019178,2]
[330286431,1719232247440,-541.45,0.00019178,2]
[330286432,1719232247449,-1235.59,0.00019178,2]
[330286433,1719232247460,-565.83,0.00019178,2]
[330286434,1719232247469,-804.32,0.00019178,2]
[330286435,1719232247480,-500.0,0.00019178,2]
[330286436,1719232247490,-500.0,0.00019178,2]
[330286437,1719232247499,-500.0,0.00019178,2]
[330286438,1719232247510,-1324.86,0.00019178,2]
[330286440,1719232247521,-500.0,0.00019178,2]
[330286441,1719232247531,-726.41,0.00019178,2]
[330286442,1719232247540,-520.29,0.00019178,2]
[330286443,1719232247550,-1000.21,0.00019178,2]
[330286444,1719232247559,-154.805073,0.00019178,2]
[330286445,1719232247569,-1434.29,0.00019178,2]
[330286446,1719232247579,-500.0,0.00019178,2]
[330286448,1719232247588,-500.0,0.00019178,2]
[330286449,1719232247598,-500.0,0.00019178,2]
[330286450,1719232247608,-500.0,0.00019178,2]
[330286451,1719232247617,-500.0,0.00019178,2]
[330286452,1719232247626,-554.99,0.00019178,2]
[330286453,1719232247636,-605.71,0.00019178,2]
[330286454,1719232247645,-500.0,0.00019178,2]
[330286455,1719232247655,-500.0,0.00019178,2]
[330286456,1719232247664,-864.95,0.00019178,2]
[330286457,1719232247673,-866.14,0.00019178,2]
[330286458,1719232247683,-500.0,0.00019178,2]
[330286459,1719232247692,-569.09,0.00019178,2]
[330286460,1719232247704,-500.0,0.00019178,2]
[330286461,1719232247714,-810.45,0.00019178,2]
[330286462,1719232247723,-500.0,0.00019178,2]
[330286463,1719232247732,-596.34,0.00019178,2]
[330286464,1719232247742,-500.0,0.00019178,2]
[330286465,1719232247753,-500.0,0.00019178,2]
[330286466,1719232247763,-500.0,0.00019178,2]
[330286468,1719232247774,-948.0,0.00019178,2]
[330286470,1719232247787,-500.0,0.00019178,2]
[330286471,1719232247797,-500.0,0.00019178,2]
[330286472,1719232247807,-500.0,0.00019178,2]
[330286473,1719232247816,-546.27,0.00019178,2]
[330286475,1719232247826,-2206.44,0.00019178,2]
[330286476,1719232247836,-500.0,0.00019178,2]
[330286477,1719232247846,-500.0,0.00019178,2]
[330286478,1719232247855,-288.61068543,0.00019178,2]
[330286479,1719232247865,-500.0,0.00019178,2]
[330286480,1719232247874,-713.69,0.00019178,2]
[330286481,1719232247884,-387.489537,0.00019178,2]
[330286482,1719232247895,-500.0,0.00019178,2]
[330286483,1719232247904,-387.489537,0.00019178,2]
[330286484,1719232247913,-500.0,0.00019178,2]
[330286485,1719232247923,-704.62,0.00019178,2]
[330286486,1719232247932,-387.489537,0.00019178,2]
[330286487,1719232247942,-500.0,0.00019178,2]
[330286488,1719232247951,-500.0,0.00019178,2]
[330286489,1719232247962,-387.489537,0.00019178,2]
[330286490,1719232247971,-387.489537,0.00019178,2]
[330286491,1719232247981,-1300.78,0.00019178,2]
[330286492,1719232247990,-387.489537,0.00019178,2]
[330286493,1719232248000,-999.14,0.00019178,2]
[330286494,1719232248009,-500.0,0.00019178,2]
[330286495,1719232248021,-500.0,0.00019178,2]
[330286496,1719232248031,-500.0,0.00019178,2]
[330286497,1719232248040,-500.0,0.00019178,2]
[330286498,1719232248051,-548.74,0.00019178,2]
[330286499,1719232248061,-500.0,0.00019178,2]
[330286500,1719232248070,-500.0,0.00019178,2]
[330286501,1719232248079,-500.0,0.00019178,2]
[330286502,1719232248088,-878.43,0.00019178,2]
[330286503,1719232248098,-500.0,0.00019178,2]
[330286504,1719232248107,-500.0,0.00019178,2]
[330286505,1719232248117,-500.0,0.00019178,2]
[330286506,1719232248126,-500.0,0.00019178,2]
[330286507,1719232248135,-500.0,0.00019178,2]
[330286508,1719232248144,-500.0,0.00019178,2]
[330286509,1719232248153,-500.0,0.00019178,2]
[330286510,1719232248162,-500.0,0.00019178,2]
[330286511,1719232248172,-500.0,0.00019178,2]
[330286512,1719232248182,-747.0,0.00019178,2]
[330286513,1719232248194,-1826.52,0.00019178,2]
[330286514,1719232248203,-855.95,0.00019178,2]
[330286515,1719232248213,-1000.68,0.00019178,2]
[330286516,1719232248222,-500.0,0.00019178,2]
[330286517,1719232248232,-157.740001,0.00019178,2]
[330286518,1719232248241,-500.0,0.00019178,2]
[330286519,1719232248251,-500.0,0.00019178,2]
[330286520,1719232248261,-500.0,0.00019178,2]
[330286521,1719232248273,-500.0,0.00019178,2]
[330286522,1719232248282,-500.0,0.00019178,2]
[330286523,1719232248291,-3444.02,0.00019178,2]
[330286524,1719232248301,-500.0,0.00019178,2]
[330286525,1719232248310,-919.77,0.00019178,2]
[330286526,1719232248320,-990.49,0.00019178,2]
[330286527,1719232248330,-718.58,0.00019178,2]
[330286528,1719232248339,-500.0,0.00019178,2]
[330286529,1719232248349,-974.62,0.00019178,2]
[330286530,1719232248360,-2544.89,0.00019178,2]
[330286531,1719232248369,-693.82,0.00019178,2]
[330286532,1719232248379,-151.0,0.00019178,2]
[330286533,1719232248388,-753.4,0.00019178,2]
[330286534,1719232248398,-151.0,0.00019178,2]
[330286535,1719232248407,-500.0,0.00019178,2]
[330286536,1719232248422,-151.0,0.00019178,2]
[330286537,1719232248432,-886.38,0.00019178,2]
[330286538,1719232248442,-500.0,0.00019178,2]
[330286539,1719232248452,-500.0,0.00019178,2]
[330286540,1719232248462,-160.826417,0.00019178,2]
[330286541,1719232248471,-160.826417,0.00019178,2]
[330286542,1719232248482,-500.0,0.00019178,2]
[330286543,1719232248492,-160.826417,0.00019178,2]
[330286544,1719232248501,-500.0,0.00019178,2]
[330286545,1719232248511,-500.0,0.00019178,2]
[330286546,1719232248523,-151.0,0.00019178,2]
[330286547,1719232248533,-151.0,0.00019178,2]
[330286548,1719232248543,-156.02769,0.00019178,2]
[330286549,1719232248553,-500.0,0.00019178,2]
[330286550,1719232248563,-160.826417,0.00019178,2]
[330286551,1719232248572,-151.0,0.00019178,2]
[330286552,1719232248581,-160.826417,0.00019178,2]
[330286553,1719232248591,-151.0,0.00019178,2]
[330286554,1719232248600,-151.0,0.00019178,2]
[330286555,1719232248610,-160.826417,0.00019178,2]
[330286556,1719232248619,-500.0,0.00019178,2]
[330286557,1719232248629,-999.2,0.00019178,2]
[330286558,1719232248638,-500.0,0.00019178,2]
[330286559,1719232248647,-1234.15,0.00019178,2]
[330286560,1719232248657,-500.0,0.00019178,2]
[330286561,1719232248667,-3931.19,0.00019178,2]
[330286562,1719232248676,-500.0,0.00019178,2]
[330286563,1719232248685,-500.0,0.00019178,2]
[330286564,1719232248707,-151.0,0.00019178,2]
[330286565,1719232248744,-500.0,0.00019178,2]
[330286566,1719232248772,-151.0,0.00019178,2]
[330286567,1719232248793,-1843.68,0.00019178,2]
[330286568,1719232248802,-151.0,0.00019178,2]
[330286569,1719232248811,-500.0,0.00019178,2]
[330286570,1719232248820,-500.0,0.00019178,2]
[330286571,1719232248829,-500.0,0.00019178,2]
[330286572,1719232248838,-837.62,0.00019178,2]
[330286573,1719232248847,-1147.17,0.00019178,2]
[330286574,1719232248856,-1111.03,0.00019178,2]
[330286575,1719232248865,-1010.26,0.00019178,2]
[330286576,1719232248874,-500.0,0.00019178,2]
[330286577,1719232248884,-500.0,0.00019178,2]
[330286578,1719232248893,-500.0,0.00019178,2]
[330286579,1719232248902,-500.0,0.00019178,2]
[330286580,1719232248912,-1480.29,0.00019178,2]
[330286581,1719232248921,-500.0,0.00019178,2]
[330286582,1719232248930,-500.0,0.00019178,2]
[330286583,1719232248939,-151.0,0.00019178,2]
[330286584,1719232248948,-151.0,0.00019178,2]
[330286585,1719232248959,-500.0,0.00019178,2]
[330286586,1719232248968,-500.0,0.00019178,2]
[330286587,1719232248978,-151.0,0.00019178,2]
[330286588,1719232248988,-500.0,0.00019178,2]
[330286589,1719232248997,-827.77,0.00019178,2]
[330286590,1719232249007,-151.0,0.00019178,2]
[330286591,1719232249016,-500.0,0.00019178,2]
[330286592,1719232249028,-1363.89,0.00019178,2]
[330286593,1719232249037,-500.0,0.00019178,2]
[330286594,1719232249047,-686.1,0.00019178,2]
[330286595,1719232249056,-584.39,0.00019178,2]
[330286596,1719232249066,-955.49,0.00019178,2]
[330286597,1719232249075,-1393.22,0.00019178,2]
[330286598,1719232249085,-1456.92,0.00019178,2]
[330286599,1719232249094,-655.56,0.00019178,2]
[330286600,1719232249104,-500.0,0.00019178,2]
[330286601,1719232249113,-502.04049071,0.00019178,2]
[330286602,1719232249123,-529.47,0.00019178,2]
[330286603,1719232249132,-1508.05,0.00019178,2]
[330286604,1719232249142,-2276.4,0.00019178,2]
[330286605,1719232249151,-500.0,0.00019178,2]
[330286606,1719232249161,-500.0,0.00019178,2]
[330286607,1719232249170,-500.0,0.00019178,2]
[330286608,1719232249179,-578.36,0.00019178,2]
[330286609,1719232249189,-500.0,0.00019178,2]
[330286610,1719232249199,-918.22,0.00019178,2]
[330286611,1719232249208,-1204.77,0.00019178,2]
[330286612,1719232249218,-500.0,0.00019178,2]
[330286613,1719232249227,-1854.93,0.00019178,2]
[330286614,1719232249236,-500.0,0.00019178,2]
[330286615,1719232249246,-572.52,0.00019178,2]
[330286616,1719232249255,-1387.12,0.00019178,2]
[330286617,1719232249265,-500.0,0.00019178,2]
[330286618,1719232249276,-500.0,0.00019178,2]
[330286619,1719232249285,-1552.14,0.00019178,2]
[330286620,1719232249295,-425.35,0.00019178,2]
[330286621,1719232249304,-895.39,0.00019178,2]
[330286622,1719232249314,-2128.36,0.00019178,2]
[330286623,1719232249323,-250.0,0.00019178,2]
[330286624,1719232249332,-500.0,0.000192,7]
[330286625,1719232249341,-2491.27644101,0.00019243,2]
[330286626,1719232249350,-229.71819632,0.00019256,2]
[330286627,1719232249360,-11032.14017442,0.000193,2]
[330286628,1719232249372,-185.61172509,0.000193,2]
[330286629,1719232249382,-11688.00574451,0.00019339,2]
[330286630,1719232249391,-3056.41106372,0.00019339,2]
[330286631,1719232249401,-151.0,0.00019339,2]
[330286632,1719232249410,-374.88148,0.00019339,2]
[330286633,1719232249419,-151.0,0.00019339,2]
[330286634,1719232249429,-374.88148,0.00019339,2]
[330286635,1719232249439,-162.86944678,0.00019352,2]
[330286636,1719232249448,-6859.05569181,0.00019352,2]
[330286637,1719232249458,-253.90432169,0.00019385,2]
[330286638,1719232249468,-10049.53812468,0.000194,2]
[330286639,1719232249477,-151.0,0.000194,2]
[330286640,1719232249487,-255.507542,0.000194,2]
[330286641,1719232249496,-255.507542,0.000194,2]
[330286642,1719232249506,-159.080352,0.000194,2]
[330286643,1719232249516,-151.0,0.000194,2]
[330286644,1719232249529,-151.0,0.000194,2]
[330286645,1719232249539,-518.04242089,0.00019425,2]
[330286646,1719232249549,-2198.85723835,0.00019425,2]
[330286647,1719232249558,-501.27197359,0.00019445,2]
[330286648,1719232249567,-510.32280622,0.0001945,2]
[330286649,1719232249576,-151.0,0.00019451,2]
[330286650,1719232249585,-151.0,0.00019451,2]
[330286651,1719232249595,-151.0,0.00019451,2]
[330286652,1719232249604,-151.0,0.00019451,2]
[330286653,1719232249614,-151.0,0.00019451,2]
[330286654,1719232249623,-151.0,0.00019451,2]
[330286655,1719232249633,-151.0,0.00019451,2]
[330286656,1719232249643,-155.17180538,0.00019451,2]
[330286657,1719232249653,-300.0,0.00019451,2]
[330286658,1719232249662,-300.0,0.00019451,2]
[330286659,1719232249672,-300.0,0.00019451,2]
[330286660,1719232249681,-300.0,0.00019451,2]
[330286661,1719232249690,-300.0,0.00019451,2]
[330286662,1719232249700,-300.0,0.00019451,2]
[330286663,1719232249714,-300.0,0.00019451,2]
[330286664,1719232249723,-300.0,0.00019451,2]
[330286665,1719232249733,-300.0,0.00019451,2]
[330286666,1719232249743,-500.0,0.00019452,4]
[330286667,1719232249753,-500.0,0.00019452,4]
[330286668,1719232249762,-500.0,0.00019452,4]
[330286669,1719232249777,-500.0,0.00019452,4]
[330286670,1719232249788,-500.0,0.00019452,4]
[330286671,1719232249799,-500.0,0.00019452,4]
[330286672,1719232249808,-500.0,0.00019452,4]
[330286673,1719232249818,-500.0,0.00019452,4]
[330286674,1719232249827,-497.07080888,0.00019452,4]
[330286675,1719232249836,-500.0,0.00019452,4]
[330286676,1719232249846,-500.0,0.00019452,4]
[330286677,1719232249855,-500.0,0.00019452,4]
[330286678,1719232249864,-500.0,0.00019452,4]
[330286679,1719232249873,-500.0,0.00019452,4]
[330286680,1719232249882,-500.0,0.00019452,4]
[330286681,1719232249891,-500.0,0.00019452,4]
[330286682,1719232249900,-500.0,0.00019452,4]